bitfinex-derivatives/quotes_ETHF0:USTF0_20250902
["timestamp","ask_amount","ask_price","bid_price","bid_amount"]
[1756844281294,0.3221,4298.4,4297.8,3.2078]
[1756844282394,3.3266,4298.5,4297.8,3.2078]
[1756844282793,0.3221,4298.4,4297.8,3.2078]
[1756844284296,3.3266,4298.5,4297.8,3.2078]
[1756844284491,0.3221,4298.4,4297.4,0.246]
[1756844284896,0.3221,4298.4,4297.3,0.3209]
[1756844285800,0.3221,4298.4,4297.2,0.246]
[1756844285992,0.3221,4298.4,4297.1,3.2078]
[1756844286197,3.3266,4298.5,4297.1,3.4538]
[1756844286395,0.3221,4298.4,4297.3,0.41881]
[1756844286703,0.1188,4299.5,4297.3,0.41881]
[1756844286704,0.3221,4300.2,4298.3,3.2078]
[1756844286998,3.2078,4300.3,4299.7,3.2078]
[1756844287301,3.2078,4300.3,4299.8,0.145]
[1756844287496,0.3221,4300.6,4299.8,0.145]
[1756844287715,0.3221,4300.6,4300.2,3.2078]
[1756844287898,0.3221,4300.6,4300.3,0.246]
[1756844288499,0.4409,4301.5,4300.4,0.29601668]
[1756844288712,3.2078,4301.6,4300.7,3.2078]
[1756844288999,3.2078,4301.6,4300.3,0.246]
[1756844289000,0.3221,4302.1,4301.4,3.2078]
[1756844289201,0.3221,4302.1,4301.5,0.246]
[1756844289397,0.1162,4302.0,4301.4,3.2078]
[1756844289699,0.1162,4302.0,4301.5,3.50342301]
[1756844289891,0.3221,4303.2,4301.6,0.29562301]
[1756844290094,0.1188,4303.5,4302.6,3.2078]
[1756844290294,0.1188,4303.5,4302.7,0.247]
[1756844291095,0.0654,4303.4,4302.8,0.247]
[1756844291296,0.3043,4303.0,4302.8,0.247]
[1756844291899,0.1166,4303.0,4302.8,0.247]
[1756844292106,0.3043,4302.9,4302.8,0.247]
[1756844293095,0.1166,4303.0,4302.6,3.2078]
[1756844293300,0.3043,4302.9,4302.4,0.247]
[1756844293495,0.3043,4302.9,4302.1,3.2078]
[1756844293496,0.1166,4302.5,4302.2,0.247]
[1756844293902,0.3043,4302.4,4302.2,0.247]
[1756844294100,0.1166,4302.5,4302.2,0.247]
[1756844294506,0.3043,4302.4,4302.2,0.247]
[1756844294697,0.3043,4302.4,4302.1,3.2078]
[1756844294900,0.1166,4302.5,4302.1,3.2078]
[1756844295101,0.3043,4302.4,4302.1,3.2078]
[1756844295502,0.1166,4302.5,4302.1,3.2078]
[1756844295802,0.3043,4302.4,4302.1,3.2078]
[1756844296006,0.1166,4302.5,4302.1,3.2078]
[1756844296509,0.3043,4302.4,4302.1,3.2078]
[1756844296703,0.3043,4302.4,4301.9,0.247]
[1756844296901,0.1166,4302.5,4301.9,0.247]
[1756844297403,0.3043,4302.4,4301.5,3.2078]
[1756844297610,0.1166,4302.5,4301.9,0.246]
[1756844298107,0.3043,4302.4,4301.9,0.246]
[1756844298307,0.1166,4302.5,4301.9,0.246]
[1756844298700,0.3043,4302.4,4301.9,0.246]
[1756844298905,0.3043,4302.4,4301.7,0.246]
[1756844299211,0.1166,4301.5,4301.3,0.246]
[1756844299508,0.3043,4301.4,4301.1,0.246]
[1756844299708,0.4209,4301.0,4300.9,3.2078]
[1756844299909,0.4209,4301.0,4300.3,3.4538]
[1756844300302,0.3043,4301.0,4300.3,3.4538]
[1756844300508,0.3043,4302.3,4301.0,0.41845]
[1756844300712,0.3043,4302.3,4301.3,3.2078]
[1756844301207,0.1166,4302.5,4301.8,3.2078]
[1756844301411,0.3043,4302.4,4301.8,3.2078]
[1756844301612,0.1166,4302.0,4301.8,3.2078]
[1756844301797,0.3043,4301.9,4301.8,3.2078]
[1756844302004,0.1166,4302.5,4301.8,3.2078]
[1756844302209,0.1166,4302.5,4301.9,0.246]
[1756844302409,0.3043,4302.6,4301.9,0.246]
[1756844303610,0.1166,4302.5,4301.8,0.246]
[1756844303815,0.3043,4302.4,4302.2,3.2078]
[1756844304006,0.3043,4302.4,4301.8,0.246]
[1756844304205,0.3043,4302.4,4302.3,3.2078]
[1756844304805,0.1166,4303.0,4302.3,3.2078]
[1756844305010,0.4,4303.1,4302.8,3.2078]
[1756844305217,0.4,4303.1,4302.9,0.246]
[1756844305913,0.4,4303.1,4302.9,0.66425]
[1756844307015,0.4,4303.1,4302.9,4.66425]
[1756844307815,0.4,4303.1,4303.0,0.246]
[1756844308015,0.4,4303.1,4303.0,0.66425]
[1756844308413,0.4,4303.1,4303.0,0.246]
[1756844308609,0.4,4303.1,4302.8,3.62606]
[1756844308804,0.4,4303.1,4302.9,0.66425]
[1756844309210,0.4,4303.1,4303.0,4.0]
[1756844310415,0.4,4303.1,4303.0,0.246]
[1756844311223,0.4,4303.1,4302.8,3.62606]
[1756844311415,0.4,4303.1,4303.0,0.246]
[1756844311613,3.2078,4305.1,4303.8,1.04542]
[1756844311913,0.4209,4305.5,4304.6,3.2078]
[1756844312113,0.4209,4305.5,4305.4,3.2078]
[1756844312309,0.4209,4305.5,4305.4,3.4548]
[1756844312517,0.1166,4307.0,4305.4,7.4548]
[1756844312714,0.3043,4306.9,4305.5,0.418]
[1756844312911,0.3043,4306.9,4306.8,2.8845]
[1756844313106,0.3043,4306.9,4306.2,0.247]
[1756844313514,0.1166,4307.0,4306.6,3.2078]
[1756844313715,0.3043,4306.4,4304.6,0.3172]
[1756844313916,0.3043,4306.4,4305.0,3.2078]
[1756844314110,3.2078,4305.8,4304.0,0.3172]
[1756844314318,0.3043,4305.4,4304.5,3.2078]
[1756844314616,0.3043,4305.4,4304.1,0.247]
[1756844314816,3.4401,4305.3,4304.0,3.2078]
[1756844315119,0.3043,4305.2,4304.0,3.2078]
[1756844315318,3.2078,4305.3,4304.0,3.2078]
[1756844315612,3.2078,4304.6,4304.0,3.2078]
[1756844316010,0.3043,4304.5,4304.0,3.2078]
[1756844316212,3.2078,4304.6,4304.0,3.2078]
[1756844316416,0.1166,4306.0,4303.9,0.247]
[1756844316417,1.07047364,4306.6,4306.5,0.50311]
[1756844316715,0.00685044,4309.7,4307.3,0.3172]
[1756844316916,0.00685044,4309.7,4308.8,3.2078]
[1756844317309,0.00685044,4309.7,4308.6,3.2078]
[1756844317310,0.39564612,4308.9,4308.6,3.2078]
[1756844317616,0.17,4308.9,4308.7,0.36274969]
[1756844317814,0.17,4308.9,4308.8,0.36274969]
[1756844318113,0.17,4308.9,4308.8,0.70240798]
[1756844318420,0.39564612,4308.9,4308.8,0.36274969]
[1756844318619,0.39564612,4308.9,4308.6,3.62551]
[1756844318815,0.17,4308.9,4308.7,0.65636568]
[1756844319014,0.17,4308.9,4308.8,0.33916568]
[1756844319219,0.17,4308.9,4308.8,0.66021248]
[1756844319417,0.17,4308.9,4308.8,0.33916568]
[1756844319418,0.39564612,4308.9,4308.8,0.33916568]
[1756844319618,0.3043,4308.8,4308.6,3.2078]
[1756844319921,0.17,4308.9,4308.7,0.33855807]
[1756844320222,0.17,4308.9,4308.8,0.97628177]
[1756844320617,0.3043,4310.9,4308.9,0.153]
[1756844320821,0.3043,4310.9,4310.2,3.2078]
[1756844321121,0.23173733,4310.3,4310.2,3.2078]
[1756844321714,0.00609121,4310.3,4310.2,3.2078]
[1756844321917,0.23173733,4310.3,4310.2,3.2078]
[1756844322118,0.54013733,4310.3,4310.2,3.2078]
[1756844322819,0.23173733,4310.3,4310.2,3.2078]
[1756844323320,0.00609121,4310.3,4310.2,3.4628]
[1756844323721,0.00609121,4310.3,4310.2,3.7934937]
[1756844324109,0.00609121,4310.3,4310.2,3.79349767]
[1756844324316,0.00609121,4310.3,4310.2,3.4628]
[1756844324618,0.54013733,4310.3,4310.2,3.2078]
[1756844324825,0.3084,4310.2,4309.7,2.98215388]
[1756844325122,0.00609121,4310.3,4309.7,2.98215388]
[1756844325317,0.00609121,4310.3,4310.2,3.2078]
[1756844325520,0.31449121,4310.3,4310.2,3.2078]
[1756844326222,4.31449121,4310.3,4310.2,3.2078]
[1756844327420,4.00609121,4310.3,4309.6,3.2078]
[1756844327618,4.00609121,4310.3,4310.1,3.2078]
[1756844327619,0.00609121,4310.3,4310.1,3.2078]
[1756844327818,0.31449121,4310.3,4310.1,3.2078]
[1756844328215,0.00609121,4310.3,4310.1,3.2078]
[1756844328615,0.00609121,4310.3,4310.2,0.254]
[1756844329525,0.00609121,4310.3,4310.2,0.3994]
[1756844330418,3.3244,4311.6,4310.5,0.41752]
[1756844330419,0.3084,4311.5,4310.5,0.41752]
[1756844330624,3.3244,4311.6,4311.0,3.2078]
[1756844330919,0.3084,4311.5,4311.1,0.254]
[1756844331222,3.3244,4311.6,4311.0,3.2078]
[1756844331412,0.3084,4311.5,4311.0,0.254]
[1756844331612,0.3084,4311.5,4310.5,3.2078]
[1756844331822,0.3084,4311.5,4310.6,0.254]
[1756844332415,0.3084,4311.5,4310.5,3.62532]
[1756844332616,0.3084,4311.5,4310.6,0.254]
[1756844333715,0.3084,4311.5,4310.7,0.253]
[1756844333910,3.3244,4311.6,4310.5,3.2078]
[1756844334111,0.1211,4311.0,4310.0,3.2078]
[1756844334313,0.1211,4311.0,4308.7,1.04424]
[1756844334314,0.1211,4310.5,4309.5,3.2078]
[1756844334722,0.3084,4310.4,4309.5,3.2078]
[1756844334928,0.1211,4310.5,4309.5,3.2078]
[1756844335222,0.3084,4310.4,4309.5,3.4608]
[1756844335425,0.1211,4310.5,4309.5,3.4608]
[1756844335621,0.3084,4310.4,4309.5,3.4608]
[1756844335816,0.3084,4310.4,4309.5,3.2078]
[1756844336027,0.1211,4310.0,4309.5,3.2078]
[1756844336327,3.2078,4309.9,4309.0,3.2078]
[1756844336728,0.3084,4309.8,4309.0,3.2078]
[1756844337423,0.3084,4309.8,4309.1,0.33197237]
[1756844337726,0.3084,4309.9,4309.2,0.33190753]
[1756844338022,0.1211,4310.0,4309.0,3.2078]
[1756844338229,0.3084,4309.9,4309.1,0.33195031]
[1756844338422,0.3084,4309.9,4309.2,0.33195031]
[1756844338731,0.3084,4309.9,4309.3,0.33195031]
[1756844338920,3.3289,4310.0,4309.0,3.2078]
[1756844339115,0.3084,4309.9,4309.1,0.33234586]
[1756844339325,0.1211,4309.5,4309.2,0.33234586]
[1756844339520,0.3084,4309.4,4309.3,0.33234586]
[1756844340233,4.3084,4309.4,4309.3,0.00982635]
[1756844340422,4.3084,4309.4,4308.5,3.2078]
[1756844340423,0.3084,4309.3,4308.5,3.2078]
[1756844340631,3.4608,4309.4,4307.9,3.2078]
[1756844340829,0.3084,4309.3,4308.1,0.2949]
[1756844341031,0.3084,4309.3,4308.2,0.33950525]
[1756844341224,3.5162,4309.3,4308.3,0.33943183]
[1756844341530,0.3084,4309.3,4308.4,3.54723183]
[1756844341727,0.3084,4309.3,4309.0,0.2949]
[1756844341926,0.3084,4309.2,4308.4,0.5479]
[1756844342131,0.3084,4309.2,4308.5,0.33996519]
[1756844342328,0.3084,4309.2,4308.6,0.33996519]
[1756844342522,0.207,4309.8,4308.7,0.33996519]
[1756844342722,0.3084,4309.7,4308.8,0.33996519]
[1756844342926,0.3084,4309.7,4308.9,0.33996519]
[1756844343130,0.207,4309.8,4309.0,0.34017991]
[1756844343329,0.207,4309.8,4308.4,0.5189]
[1756844343629,0.3084,4309.7,4308.5,0.34022691]
[1756844343825,0.3084,4309.7,4308.6,0.34022691]
[1756844344024,0.3084,4309.7,4308.0,0.2949]
[1756844344025,0.3084,4309.3,4308.7,0.34022691]
[1756844344231,0.3084,4309.3,4307.7,3.2078]
[1756844344232,0.3084,4309.3,4307.8,0.253]
[1756844344421,0.3084,4309.3,4307.9,0.34073427]
[1756844344619,0.3084,4309.3,4308.0,0.34073427]
[1756844344820,0.3084,4309.3,4308.1,0.34073427]
[1756844345024,0.3084,4309.3,4307.7,3.4598]
[1756844345025,3.2078,4308.9,4308.2,0.34073427]
[1756844345232,0.3084,4308.4,4308.3,0.34073427]
[1756844346526,0.252,4308.6,4308.3,0.34073427]
[1756844346833,0.4295,4308.5,4308.4,0.34073427]
[1756844347034,0.91752861,4308.5,4308.4,0.34073427]
[1756844347231,0.4295,4308.5,4308.4,0.34073427]
[1756844347429,0.9173229,4308.5,4307.7,3.2078]
[1756844347629,0.4295,4308.5,4307.8,0.33189315]
[1756844347829,0.4295,4308.5,4307.9,0.33189315]
[1756844348032,0.3084,4308.3,4308.0,0.33189315]
[1756844348226,3.2078,4308.4,4307.0,3.2078]
[1756844348227,3.43996,4308.4,4307.0,3.2078]
[1756844348428,0.79607336,4308.3,4307.1,0.32255904]
[1756844348632,3.2078,4307.9,4307.2,0.32255904]
[1756844348836,0.5604,4307.8,4307.3,0.32255904]
[1756844349136,0.3084,4307.7,4307.0,3.2078]
[1756844349434,0.3084,4307.7,4307.1,0.3224169]
[1756844349631,0.3084,4307.7,4307.2,0.3224169]
[1756844349835,0.252,4307.8,4307.0,3.2078]
[1756844350024,0.3084,4307.7,4307.1,0.32240323]
[1756844350227,0.252,4307.6,4307.0,3.2078]
[1756844350430,3.2078,4308.4,4307.1,0.32220564]
[1756844350625,0.252,4308.6,4307.6,0.2949]
[1756844350930,0.3084,4308.7,4307.6,0.2949]
[1756844351125,0.3084,4308.7,4307.8,0.2928]
[1756844351330,0.2945,4309.4,4308.3,0.2928]
[1756844351532,0.2945,4309.4,4308.8,0.2928]
[1756844351731,0.4119,4309.5,4308.2,0.2928]
[1756844351928,0.4119,4309.5,4308.3,0.32192837]
[1756844352127,0.4119,4309.5,4308.4,0.32192837]
[1756844352433,0.1174,4309.5,4308.5,0.63306968]
[1756844352631,0.2945,4308.7,4308.6,0.31114131]
[1756844352931,0.2945,4308.6,4307.6,3.7526]
[1756844353132,0.2945,4308.6,4307.7,0.62690753]
[1756844353333,0.2945,4308.6,4307.8,0.62690753]
[1756844353522,0.2945,4308.6,4307.6,3.5006]
[1756844353523,0.197,4308.8,4308.2,0.2928]
[1756844353729,0.197,4308.9,4307.6,3.5006]
[1756844353921,0.2945,4308.8,4307.7,0.62685478]
[1756844354234,0.2945,4308.8,4307.8,0.62685478]
[1756844354431,0.252,4308.7,4307.9,0.62685478]
[1756844354635,0.252,4308.7,4307.6,3.5006]
[1756844354834,0.252,4308.7,4307.7,0.62672122]
[1756844355135,0.252,4308.7,4307.8,0.62672122]
[1756844355333,0.252,4308.7,4307.6,3.5006]
[1756844355534,0.2945,4308.6,4307.7,0.62665511]
[1756844355733,0.2945,4308.6,4307.8,0.62665511]
[1756844355934,0.2945,4308.6,4307.6,3.5006]
[1756844356129,3.5023,4309.0,4307.8,0.2928]
[1756844356337,0.252,4308.9,4307.8,0.2928]
[1756844356529,0.252,4308.9,4307.3,0.252]
[1756844356530,3.5023,4309.0,4308.1,3.2078]
[1756844356837,0.252,4308.9,4308.2,0.2928]
[1756844359826,0.252,4308.9,4308.0,3.2078]
[1756844360031,0.2945,4308.8,4308.0,3.2078]
[1756844360538,0.2945,4308.8,4307.9,0.2928]
[1756844360738,0.252,4308.9,4307.5,3.5006]
[1756844360934,0.2945,4308.8,4307.6,0.30477136]
[1756844361138,0.2945,4308.8,4307.7,0.30477136]
[1756844361339,0.2945,4308.8,4307.5,3.5006]
[1756844361539,0.2945,4308.8,4307.6,0.62002305]
[1756844361738,0.2945,4308.8,4307.7,0.30497291]
[1756844361932,0.2945,4308.8,4307.8,0.30497291]
[1756844362136,0.252,4308.9,4307.5,3.5006]
[1756844362436,0.2945,4308.8,4307.6,0.6200638]
[1756844362630,0.252,4308.9,4307.7,0.6200638]
[1756844362829,3.3252,4308.0,4307.0,3.2078]
[1756844363036,0.251,4307.9,4307.0,3.2078]
[1756844363536,0.2945,4307.8,4307.0,3.2078]
[1756844363936,3.2078,4307.8,4306.5,3.5006]
[1756844364243,0.2945,4307.6,4306.6,0.2928]
[1756844364444,0.2945,4308.1,4307.1,0.2928]
[1756844364736,0.5455,4308.1,4307.4,3.2078]
[1756844364934,0.5455,4308.1,4307.4,3.5006]
[1756844365135,3.2078,4308.6,4307.5,0.2928]
[1756844365136,3.5023,4308.6,4307.5,0.2928]
[1756844365339,0.73950834,4308.5,4307.5,0.2928]
[1756844365540,0.48850834,4308.4,4307.5,0.2928]
[1756844365742,0.251,4308.4,4307.5,0.2928]
[1756844366543,0.251,4308.3,4307.5,0.2928]
[1756844366943,3.5023,4308.6,4307.5,0.2928]
[1756844367241,3.2078,4308.6,4307.6,0.31571785]
[1756844367443,3.2078,4308.6,4308.0,0.2928]
[1756844367744,3.2078,4308.6,4308.2,0.2928]
[1756844367945,0.2945,4308.5,4307.9,3.2078]
[1756844368147,3.2078,4308.6,4308.0,0.31569604]
[1756844368340,3.5023,4308.6,4308.2,0.2928]
[1756844368738,0.2945,4308.5,4307.9,3.2078]
[1756844369140,3.5023,4309.3,4308.0,0.2928]
[1756844369444,0.4893218,4309.2,4308.2,0.2928]
[1756844369646,3.5023,4309.3,4308.2,0.2928]
[1756844369846,0.2945,4309.1,4308.2,0.2928]
[1756844370034,3.2078,4308.7,4307.9,3.2078]
[1756844370247,0.2945,4308.6,4308.0,0.31593897]
[1756844370441,0.2945,4308.6,4307.9,3.2078]
[1756844371536,0.2945,4308.6,4308.0,0.31595744]
[1756844371747,0.2945,4308.6,4307.9,3.2078]
[1756844372139,0.2945,4308.6,4308.0,0.31602945]
[1756844372339,0.2945,4308.6,4307.9,3.2078]
[1756844372542,0.2945,4308.6,4308.0,0.31602597]
[1756844372848,0.2945,4308.6,4307.9,3.2078]
[1756844373145,0.25,4308.5,4308.0,0.31609675]
[1756844373446,0.2945,4308.4,4307.9,3.2078]
[1756844373842,0.25,4308.5,4307.9,3.2078]
[1756844374947,0.5445,4308.5,4307.9,3.2078]
[1756844375348,0.2945,4308.5,4307.9,3.2078]
[1756844375539,0.1174,4309.0,4308.0,0.31611838]
[1756844375540,0.201,4309.0,4308.0,0.31611838]
[1756844375850,0.2945,4308.9,4308.1,0.2928]
[1756844376943,3.2078,4308.7,4307.7,1.21532543]
[1756844377144,0.1174,4308.5,4307.6,1.50812543]
[1756844377446,0.2945,4308.1,4307.6,0.2928]
[1756844377763,3.2078,4308.2,4307.6,0.2928]
[1756844378443,0.2945,4308.1,4307.6,0.2928]
[1756844378642,3.5023,4308.2,4307.6,0.2928]
[1756844379752,0.25,4308.1,4307.5,0.2928]
[1756844380147,0.25,4308.1,4307.6,0.316277]
[1756844380342,0.5445,4308.1,4307.5,0.2928]
[1756844380553,3.2078,4308.2,4307.5,0.2928]
[1756844380554,3.2078,4308.2,4307.7,0.2928]
[1756844380850,1.2978,4308.1,4307.7,0.2928]
[1756844381253,1.2978,4308.1,4307.6,0.3195]
[1756844381448,1.2978,4308.1,4307.8,0.3195]
[1756844381749,0.2935,4308.0,4307.6,1.21532543]
[1756844381955,0.2935,4307.9,4307.3,1.21532543]
[1756844382251,0.2935,4308.0,4307.4,0.31632283]
[1756844382552,0.2935,4308.0,4307.3,1.53482543]
[1756844382750,0.2935,4308.0,4307.4,0.31639061]
[1756844382955,1.2978,4308.1,4307.4,3.2078]
[1756844383149,1.5913,4308.1,4307.5,0.3195]
[1756844384951,0.35854,4308.0,4307.2,1.21532543]
[1756844385148,4.5056,4308.1,4307.2,0.3195]
[1756844385850,4.5056,4308.1,4307.3,0.31640717]
[1756844386045,0.2935,4308.0,4307.4,0.3195]
[1756844386252,0.2935,4308.0,4307.1,1.21532543]
[1756844386453,0.249,4307.9,4307.4,3.2078]
[1756844387051,0.249,4307.9,4307.4,3.5273]
[1756844387250,0.2935,4307.8,4307.5,0.3195]
[1756844387954,0.249,4307.9,4307.2,1.21532543]
[1756844388156,0.249,4307.9,4307.1,1.21532543]
[1756844388459,0.2935,4307.8,4307.0,1.21532543]
[1756844388657,0.2935,4307.8,4306.9,4.42312543]
[1756844388955,0.2935,4307.8,4306.9,3.2078]
[1756844389148,0.2935,4307.4,4306.8,1.21532543]
[1756844389349,0.2935,4307.3,4306.8,1.21532543]
[1756844389549,0.249,4307.4,4306.8,1.21532543]
[1756844389958,0.249,4307.4,4306.7,1.21532543]
[1756844390251,0.2935,4307.3,4306.6,1.21532543]
[1756844390651,0.2935,4307.3,4306.5,1.21532543]
[1756844391050,3.7503,4307.5,4306.6,0.3195]
[1756844392451,3.5013,4307.5,4306.9,0.3195]
[1756844392647,0.1264,4308.0,4306.9,0.3195]
[1756844392648,0.5425,4307.9,4306.9,0.3195]
[1756844393050,0.23216,4307.8,4306.8,3.2078]
[1756844393250,0.23216,4307.8,4306.4,1.21532543]
[1756844393251,3.2078,4307.3,4306.4,1.21532543]
[1756844393455,0.2935,4307.1,4306.4,1.21532543]
[1756844393954,0.249,4307.2,4306.4,1.21532543]
[1756844394353,0.249,4307.2,4306.3,1.21532543]
[1756844394354,0.23219,4307.1,4306.3,1.21532543]
[1756844394555,3.2078,4306.8,4305.9,1.21532543]
[1756844394761,0.5425,4306.7,4305.9,1.21532543]
[1756844394960,0.5425,4306.7,4306.0,0.3195]
[1756844394961,0.249,4306.6,4306.0,0.3195]
[1756844395460,0.195,4306.6,4306.0,0.3195]
[1756844395656,0.2935,4306.7,4306.0,0.3195]
[1756844395856,0.4825,4306.7,4306.0,0.3195]
[1756844396257,0.189,4306.7,4305.8,3.2078]
[1756844396455,0.2935,4306.6,4305.8,3.2078]
[1756844396662,0.249,4306.5,4305.9,0.3195]
[1756844397159,0.2935,4307.3,4306.3,3.2078]
[1756844397456,3.2078,4307.4,4306.4,0.3195]
[1756844397656,3.2078,4308.0,4307.3,3.2078]
[1756844397863,3.2078,4308.0,4307.4,0.3195]
[1756844398250,3.2078,4308.0,4306.7,4.42312543]
[1756844398251,3.3342,4308.0,4306.7,4.42312543]
[1756844398451,3.3342,4308.0,4306.2,1.61489358]
[1756844398452,0.48116,4307.9,4306.5,1.21532543]
[1756844398659,0.2935,4307.2,4306.3,0.3195]
[1756844398860,0.2935,4307.2,4306.5,3.2078]
[1756844399054,0.2935,4307.2,4306.6,0.3195]
[1756844399357,3.2078,4307.8,4306.7,0.249]
[1756844399554,0.2935,4308.0,4307.1,0.3195]
[1756844399756,0.2935,4308.0,4307.5,3.2078]
[1756844399956,0.2935,4308.0,4307.6,0.3195]
[1756844400360,0.249,4308.4,4307.6,0.3195]
[1756844400558,0.249,4308.4,4307.0,1.53482543]
[1756844400559,3.4568,4308.4,4307.0,1.53482543]
[1756844400855,0.5425,4308.0,4307.0,1.53482543]
[1756844401064,32.01064535,4309.5,4308.0,0.3195]
[1756844401065,0.2935,4308.5,4308.0,0.3195]
[1756844401261,3.2078,4308.9,4308.0,0.3195]
[1756844401461,0.2935,4308.6,4308.0,0.3195]
[1756844401661,3.2078,4308.9,4307.8,3.2078]
[1756844401862,0.2935,4308.0,4307.8,3.2078]
[1756844402254,3.2078,4308.3,4307.5,1.53482543]
[1756844402455,0.2935,4308.0,4307.5,0.3195]
[1756844402752,1.5913,4308.1,4307.5,0.3195]
[1756844403156,1.2978,4308.1,4307.4,1.21532543]
[1756844403352,1.2978,4308.1,4307.4,0.3195]
[1756844403661,1.2978,4308.1,4307.8,0.3195]
[1756844403864,1.2978,4308.1,4307.9,0.249]
[1756844404062,1.2978,4308.1,4308.0,0.3195]
[1756844404256,0.8344,4308.1,4308.0,0.3195]
[1756844406066,0.8344,4308.1,4308.0,5.335]
[1756844406461,1.1279,4308.1,4308.0,5.335]
[1756844406863,0.2935,4308.1,4308.0,5.335]
[1756844407163,0.2935,4308.9,4307.9,0.249]
[1756844407366,0.2935,4308.9,4308.3,3.2078]
[1756844407566,0.2935,4308.9,4308.3,3.4568]
[1756844409266,0.1264,4309.0,4308.3,3.4568]
[1756844409767,0.2935,4308.9,4308.3,3.2078]
[1756844410070,0.2935,4308.4,4308.3,3.4568]
[1756844410270,0.2935,4308.4,4308.3,3.2078]
[1756844410861,0.2935,4308.4,4307.8,3.2078]
[1756844411066,0.2935,4307.9,4307.3,4.67112543]
[1756844411266,0.1264,4308.0,4307.3,4.67112543]
[1756844411474,0.3216,4307.9,4307.3,4.42312543]
[1756844411769,0.1264,4308.0,4307.3,4.67112543]
[1756844411970,3.2078,4308.4,4307.3,4.67112543]
[1756844411971,0.1264,4308.5,4307.4,0.23215]
[1756844412177,0.1264,4309.0,4308.0,3.2078]
[1756844412471,0.3216,4309.1,4308.8,3.2078]
[1756844412665,0.3216,4309.2,4308.8,3.2078]
[1756844412862,1.2808,4308.9,4308.8,3.2078]
[1756844413575,1.2808,4308.9,4308.3,3.2078]
[1756844413776,0.3216,4308.8,4308.4,0.249]
[1756844414775,0.9592,4308.9,4308.4,0.249]
[1756844414975,0.3216,4308.8,4308.4,0.249]
[1756844415567,0.9592,4308.9,4308.4,0.249]
[1756844415767,0.9592,4308.9,4308.3,3.2078]
[1756844416170,0.9592,4308.9,4308.4,0.248]
[1756844416370,0.3216,4308.8,4308.4,0.248]
[1756844416574,0.9592,4308.9,4308.4,0.248]
[1756844416773,0.9592,4308.9,4308.8,3.2078]
[1756844416970,1.2808,4308.9,4308.8,3.2078]
[1756844424177,1.2808,4308.9,4308.4,0.247]
[1756844424678,0.1207,4308.5,4308.3,3.4548]
[1756844424879,0.3216,4308.4,4308.3,3.4548]
[1756844425684,0.3216,4308.4,4308.3,3.2078]
[1756844426079,0.1207,4308.5,4307.9,1.46232543]
[1756844426284,0.1207,4308.0,4307.9,0.247]
[1756844426580,0.1207,4308.0,4307.9,5.582]
[1756844426981,0.4423,4308.0,4307.9,5.582]
[1756844427481,0.1207,4308.0,4307.7,3.2078]
[1756844427887,0.1207,4308.5,4307.7,3.2078]
[1756844428182,0.3216,4308.4,4307.6,0.247]
[1756844428381,3.2078,4308.2,4307.5,1.21532543]
[1756844428585,0.3216,4307.9,4307.3,1.21532543]
[1756844428883,0.3216,4307.9,4307.2,4.67012543]
[1756844429085,0.1207,4308.0,4307.4,1.21532543]
[1756844429280,0.3216,4307.9,4307.4,1.21532543]
[1756844429476,3.2078,4308.2,4307.4,1.46232543]
[1756844429680,0.3216,4308.6,4307.9,4.42312543]
[1756844429875,0.3216,4309.2,4308.5,3.2078]
[1756844430079,0.3216,4309.2,4308.5,3.4548]
[1756844430679,0.3216,4309.2,4308.6,1.63305543]
[1756844430886,0.1207,4310.0,4308.7,0.66472]
[1756844430887,0.3216,4309.9,4308.7,0.66472]
[1756844431186,0.3216,4309.9,4308.8,1.89952222]
[1756844431484,0.3216,4309.9,4308.8,2.13160222]
[1756844431687,0.3216,4309.9,4308.8,1.89952222]
[1756844432377,3.2078,4310.2,4308.8,6.13160222]
[1756844432578,3.2078,4310.2,4308.8,5.56097864]
[1756844432783,0.3216,4310.1,4309.6,4.43451922]
[1756844433086,0.1207,4310.0,4309.7,0.247]
[1756844433286,0.3216,4309.9,4309.6,3.4548]
[1756844433488,0.1207,4310.0,4309.6,4.68151922]
[1756844433679,0.3216,4309.9,4309.6,4.68151922]
[1756844433981,0.1207,4310.0,4309.6,4.68151922]
[1756844434186,0.3216,4309.9,4309.6,4.68151922]
[1756844434387,0.3216,4309.9,4309.6,3.4548]
[1756844434590,0.3216,4309.9,4309.6,4.68151922]
[1756844434787,0.3216,4310.4,4309.8,1.22671922]
[1756844435089,0.3216,4310.9,4310.0,1.22671922]
[1756844435279,0.3216,4310.9,4310.1,3.4548]
[1756844435886,0.1207,4311.0,4310.1,3.4548]
[1756844436187,0.3216,4310.9,4310.1,3.4548]
[1756844436383,0.3216,4310.8,4310.1,3.4548]
[1756844436778,0.1636,4310.9,4310.1,3.4548]
[1756844436983,0.1207,4310.5,4310.1,3.2078]
[1756844437185,0.3216,4310.4,4310.1,3.2078]
[1756844437794,0.1207,4310.5,4310.1,3.2078]
[1756844439196,0.1636,4310.9,4310.2,0.247]
[1756844439491,0.1636,4310.9,4310.6,3.2078]
[1756844439684,0.1636,4310.9,4310.7,0.247]
[1756844440489,0.1636,4310.9,4310.6,3.2078]
[1756844440490,0.1636,4310.9,4310.8,0.247]
[1756844440784,0.1636,4310.9,4310.6,3.2078]
[1756844440984,0.3216,4310.8,4310.7,0.247]
[1756844441181,0.1636,4310.9,4310.7,0.247]